Cogmind - Beta 13 --- EXPLORER MODE // 2024.03.22 @ 15:40:58 Player: Lilith Result: Destroyed by JU-K5J(R) with Subdweller Machine Gun Performance ------------- Evolutions (0) 0 Regions Visited (3) 600 Robots Destroyed (30) 150 Value Destroyed (742) 742 Prototype IDs (3) 60 Alien Tech Used (0) 0 Bonus (30) 30 TOTAL SCORE: 1582 Bonus ------- Follower Combat Kills 30 Cogmind --------- Core Integrity 0/250 Matter 300/300 Energy 97/100 System Corruption 0% Temperature Cool (0) Movement Hovering (80) Location -10/Subcaves Parts ------- > --- POWER (1) -------- (None) > --- PROPULSION (2) --- Combat Airjet > --- UTILITY (3) ------ Structural Scanner Targeting Computer Thief Drone Bay (2/3) > --- WEAPON (2) ------- Ripper Ripper > --- INVENTORY (5) ---- Disposable Heat Sink Subdweller Optics Makeshift Hacking Suite Subdweller Machine Gun Peak State ------------ > --- POWER ------------ (None) > --- PROPULSION ------- Combat Airjet > --- UTILITY ---------- Structural Scanner Targeting Computer Thief Drone Bay > --- WEAPON ----------- Ripper Ripper > --- INVENTORY -------- Disposable Heat Sink Subdweller Optics Makeshift Hacking Suite Subdweller Machine Gun [Rating: 23] Favorites ----------- Power Light Nuclear Core Engine Light Ion Engine Power Core Light Nuclear Core Propulsion Aluminum Leg Leg Aluminum Leg Hover Unit Combat Airjet Utility Targeting Computer Device Structural Scanner Processor Targeting Computer Weapon Assault Rifle Energy Gun Medium Laser Ballistic Gun Assault Rifle Special Weapon Mining Laser Slashing Weapon Ripper Build | -11 -10 -10 -10 ------- Run | Yrd Mat Min Sub Slots Evolved 1 | . 1 . . Power . | . . . . Propulsion . | . . . . Utility 1 | . 1 . . Weapon . | . . . . Parts Attached 31 | 6 4 6 15 Power 7 | 1 2 1 3 Engine 5 | 1 2 . 2 Core 2 | . . 1 1 Reactor . | . . . . Propulsion 4 | 2 . 1 1 Treads . | . . . . Leg 3 | 2 . 1 . Wheel . | . . . . Hover 1 | . . . 1 Flight . | . . . . Utility 9 | 1 2 2 4 Device 7 | . 1 2 4 Storage . | . . . . Processor 2 | 1 1 . . Hackware . | . . . . Protection . | . . . . Artifact . | . . . . Weapon 11 | 2 . 2 7 Energy Gun 3 | 1 . 1 1 Energy Cannon . | . . . . Ballistic Gun 5 | 1 . . 4 Ballistic Cannon . | . . . . Launcher . | . . . . Special Weapon 1 | . . 1 . Impact Weapon . | . . . . Slashing Weapon 2 | . . . 2 Piercing Weapon . | . . . . Special Melee Weapon . | . . . . Unidentified Prototypes 1 | . . 1 . Parts Lost 7 | . 1 2 4 Power 3 | . 1 1 1 Propulsion 3 | . . 1 2 Utility . | . . . . Weapon 1 | . . . 1 Highest Loss Streak 2 | . 1 1 2 To Critical Strikes . | . . . . Average Slot Usage (%) 84 | . 93 99 73 Engine 4 | . 11 2 2 Core 3 | . . 9 2 Leg 14 | . 25 24 5 Hover 1 | . . . 2 Device 16 | . 11 12 21 Processor 18 | . 19 25 14 Energy Gun 8 | . 12 10 6 Ballistic Gun 10 | . 12 12 8 Slashing Weapon 3 | . . . 7 Naked Turns . | . . . . Heaviest Build 17 | 7 10 13 17 Greatest Support 20 | 20 20 20 20 Greatest Overweight (x) 4 | . . . 4 Average Overweight (x) . | . . . 1 Largest Inventory Capacity 5 | 5 5 5 5 Average Capacity 5 | 5 5 5 5 Most Carried 5 | 1 1 3 5 Average Carried 2 | . . 1 4 Final Capacity 5 | 5 5 5 5 Final Carried 4 | . . 3 4 Class Distribution -------------------- 100% | Hacker-Mutant Dominant Class ---------------- Hacker-Mutant | -10/Materials Hacker-Mutant | -10/Mines Hacker-Mutant | -10/Subcaves Resources | -11 -10 -10 -10 ----------- Run | Yrd Mat Min Sub Matter Collected 764 | 237 190 127 210 Remotely . | . . . . Salvage Created 1023 | . 464 271 288 Parts 69 | . 34 15 20 Haulers Intercepted 1 | . 1 . . Recyclers Shooed 1 | . 1 . . Parts Field Recycled . | . . . . Retrieved Matter . | . . . . Parts Self-Destructed . | . . . . Prevented . | . . . . Kills | -11 -10 -10 -10 ------- Run | Yrd Mat Min Sub Combat Hostiles Destroyed 26 | . 9 9 8 Melee 2 | . . . 2 Guns 24 | . 9 9 6 Classes Destroyed 8 | . 5 2 1 Worker 5 | . 2 3 . Hauler 1 | . 1 . . Watcher 3 | . 3 . . Swarmer 5 | . 4 1 . Grunt 7 | . 5 2 . Demolisher 1 | . . 1 . Subdweller 8 | . . . 8 Assembled 5 | . . 5 . Best Kill Streak 5 | . 3 5 1 Combat Bots Only 5 | . 2 5 1 Max Kills in Single Turn 1 | . 1 1 1 Gunslinging . | . . . . Exploded . | . . . . Melee 1 | . . . 1 Uniques/NPCs Destroyed . | . . . . Combat | -11 -10 -10 -10 -------- Run | Yrd Mat Min Sub Hostile Shots Fired 102 | . 36 21 45 Missed 32 | . 13 8 11 Damage Taken 1161 | . 225 149 787 Core 252 | . 26 6 220 Absorbed by Shields . | . . . . Ignored by Resistances 619 | . 142 88 389 Core Remaining (%) 100 | 100 . . . Volleys Fired 113 | . 45 31 37 Largest 2 | . 2 2 2 Hottest 100 | . 70 100 90 Shots Fired 211 | . 88 55 68 Gun 205 | . 88 49 68 Cannon . | . . . . Launcher . | . . . . Special 6 | . . 6 . Kinetic 102 | . 45 24 33 Thermal 109 | . 43 31 35 Explosive . | . . . . Electromagnetic . | . . . . Robot Hit Streak 19 | . 15 19 15 Robot Miss Streak 2 | . 2 2 1 Penetration Max . | . . . . Secondary Targets 2 | . 1 1 . Max Gunslinging Chain 1 | . 1 1 . Shots Hit Robots 168 | . 71 37 60 Core Hits 55 | . 23 21 11 Critical Kills 1 | . . . 1 Critical Parts Destroyed . | . . . . Critical Strikes 4 | . 2 1 1 Burn 3 | . 2 1 . Destroy 1 | . . . 1 Melee Attacks 22 | . . . 22 Impact . | . . . . Slashing 22 | . . . 22 Piercing . | . . . . Sneak Attacks . | . . . . Combat Hostiles . | . . . . Follow-up Attacks 1 | . . . 1 Damage Inflicted 2690 | . 908 465 1317 Guns 2162 | . 908 458 796 Cannons . | . . . . Explosions . | . . . . Melee 521 | . . . 521 Ramming 7 | . . 7 . Kinetic 1035 | . 461 179 395 Thermal 1127 | . 447 279 401 Explosive . | . . . . Electromagnetic . | . . . . Impact . | . . . . Slashing 521 | . . . 521 Piercing . | . . . . Highest Corruption . | . . . . Average Corruption . | . . . . Corruption Purged . | . . . . Corruption Blocked . | . . . . Overload Shots . | . . . . Overflow Damage . | . . . . Projectiles . | . . . . Explosions . | . . . . Melee . | . . . . Knockbacks . | . . . . Impact . | . . . . Kinetic . | . . . . Secondary . | . . . . Self-Inflicted Damage . | . . . . Shots . | . . . . Rammed . | . . . . Targets Rammed 1 | . . 1 . Kicked 1 | . . 1 . Crushed . | . . . . Highest Temperature 222 | . 222 123 161 Average Temperature 45 | . 48 39 97 Received Heat Transfer 556 | . 177 129 250 Siege Activations . | . . . . Robots Corrupted . | . . . . Combat Hostiles . | . . . . Parts Fried . | . . . . Impact Corruptions . | . . . . Robots Melted . | . . . . Combat Hostiles . | . . . . Parts Melted 2 | . 1 . 1 Heat Transferred 3051 | . 1480 888 683 Parts Sabotaged . | . . . . Parts Stolen . | . . . . Parts Stripped . | . . . . Power Chain Reactions . | . . . . Alert | -11 -10 -10 -10 ------- Run | Yrd Mat Min Sub Peak Influence 195 | . 195 87 . Initial 32 | . . 32 . Average 48 | . 70 29 . Maximum Alert Level . | . . . . Low Security (%) 100 | 100 100 100 . Level 1 . | . . . . Level 2 . | . . . . Level 3 . | . . . . Level 4 . | . . . . Level 5 . | . . . . High Security . | . . . . Max Security . | . . . . Squads Dispatched 2 | . 2 . . Investigation 2 | . 2 . . Extermination . | . . . . Reinforcement . | . . . . Assault . | . . . . Garrison . | . . . . Intercept . | . . . . Searches Triggered . | . . . . Construction Impeded . | . . . . Haulers Reinforced . | . . . . Active Scanning Responses . | . . . . Cargo Convoy Interrupts . | . . . . Stealth | -11 -10 -10 -10 --------- Run | Yrd Mat Min Sub Distress Signals 1 | . . 1 . Communications Jammed . | . . . . Distress Signals . | . . . . Times Spotted 41 | . 17 11 13 Peak Tracking Total 3 | . 2 3 2 Tactical Retreats 7 | . 1 2 4 Traps | -11 -10 -10 -10 ------- Run | Yrd Mat Min Sub Traps Triggered 9 | . 3 . 6 Indirectly . | . . . . Trap Hack Attempts . | . . . . Triggered . | . . . . Disarmed . | . . . . Reprogrammed . | . . . . Reused . | . . . . Traps Extracted . | . . . . Installed . | . . . . Triggered . | . . . . Machines | -11 -10 -10 -10 ---------- Run | Yrd Mat Min Sub Machines Disabled . | . . . . Max in Single Turn . | . . . . Machines Repaired . | . . . . Machines Dismantled . | . . . . Machines Sabotaged . | . . . . Overloaded Fab Kills . | . . . . Hacking | -11 -10 -10 -10 --------- Run | Yrd Mat Min Sub Machines Accessed 10 | . 8 1 1 Terminals 8 | . 8 . . Fabricators . | . . . . Repair Stations . | . . . . Recycling Units . | . . . . Scanalyzers . | . . . . Garrison Access . | . . . . Total Hacks 26 | . 23 1 2 Successful 18 | . 15 1 2 Failed 8 | . 8 . . Catastrophic 3 | . 3 . . Database Lockouts . | . . . . Manual 37 | . 23 . 14 Terminals 23 | . 23 . . Fabricators . | . . . . Repair Stations . | . . . . Recycling Units . | . . . . Scanalyzers . | . . . . Garrison Access . | . . . . Terminal Hacks 10 | . 7 1 2 Record 2 | . . . 2 Part Schematic 2 | . 2 . . Robot Analysis 1 | . 1 . . Prototype ID Bank 1 | . 1 . . Open Door 1 | . . 1 . Branch Access Points 1 | . 1 . . Machine Index 1 | . 1 . . Locate Traps 1 | . 1 . . Fabricator Hacks . | . . . . Repair Station Hacks . | . . . . Recycling Unit Hacks . | . . . . Scanalyzer . | . . . . Garrison Access Hacks . | . . . . Unauthorized Hacks 8 | . 8 . . Terminals 8 | . 8 . . Botnet 7 | . 7 . . Operators 1 | . 1 . . Fabricators . | . . . . Repair Stations . | . . . . Recycling Units . | . . . . Scanalyzers . | . . . . Garrison Access . | . . . . Data Cores Recovered . | . . . . Used . | . . . . Hacking Detections 8 | . 8 . . Full Trace Events 4 | . 4 . . Feedback Events . | . . . . Feedback Blocked . | . . . . Robot Schematics Acquired . | . . . . Robots Built . | . . . . Authchips . | . . . . Time . | . . . . Total Robot Build Rating . | . . . . Part Schematics Acquired 2 | . 2 . . Parts Built . | . . . . Authchips . | . . . . Time . | . . . . Total Part Build Rating . | . . . . Parts Repaired . | . . . . Time . | . . . . Parts Recycled . | . . . . Recycled Matter . | . . . . Retrieved Matter . | . . . . Retrieved Components . | . . . . Parts Scanalyzed . | . . . . Part Schematics Acquired . | . . . . Parts Damaged . | . . . . Bothacking | -11 -10 -10 -10 ------------ Run | Yrd Mat Min Sub Used RIF Installer . | . . . . Robots Hacked . | . . . . Non-combat . | . . . . Combat . | . . . . Robot Hacks Applied . | . . . . Relay Couplers Released . | . . . . Fabnet Peak Effective % . | . . . . Robots Rewired . | . . . . Allies Hacked . | . . . . Hacks Repelled . | . . . . Allies | -11 -10 -10 -10 -------- Run | Yrd Mat Min Sub Total Allies 1 | . . 1 . Largest Group 1 | . . 1 . Highest-Rated Group 31 | . . 31 . Highest-Rated Ally 31 | . . 31 . Total Orders 17 | . . 2 15 ROAM 2 | . . . 2 EXPLORE 8 | . . 1 7 RETURN 7 | . . 1 6 Ally Attacks 58 | . . . 58 Total Damage 209 | . . . 209 Kills 1 | . . . 1 Allies Corrupted . | . . . . Allies Melted . | . . . . Intel | -11 -10 -10 -10 ------- Run | Yrd Mat Min Sub Robot Analysis Total 1 | . 1 . . Derelict Logs Recovered 3 | . . . 3 Drone Launches 20 | . . 1 19 Drone Recoveries 19 | . . 1 18 Exploration | -11 -10 -10 -10 ------------- Run | Yrd Mat Min Sub Turns Passed 4290 | 56 1016 1072 2146 Spaces Moved 2818 | 35 717 787 1279 Core 650 | 5 . . 645 Treads . | . . . . Legs 1773 | 30 717 787 239 Wheels . | . . . . Hover 395 | . . . 395 Flight . | . . . . Fastest Speed 50 | 50 120 120 80 Average Speed 127 | 110 120 120 136 Slowest Speed 250 | 120 120 120 250 Overloaded Moves . | . . . . Propulsion Burnouts . | . . . . Robots Hopped . | . . . . Cave-ins Triggered . | . . . . Exploration Rate (%) 68 | 5 89 101 77 Regions Visited 3 Branch Regions 2 Pre-discovered Areas 2 | . . . 2 Known Exits Taken 3 | 1 1 1 . Unknown Exits Taken . | . . . . Scrap Searched 8 | . . . 8 Spaces Dug 8 | . . 6 2 Terrain Destroyed 8 | . . 6 2 Melee 2 | . . . 2 Projectile 6 | . . 6 . AOE . | . . . . Terrain Rammed . | . . . . Walls Destroyed . | . . . . Machines Disabled . | . . . . Actions | -11 -10 -10 -10 --------- Run | Yrd Mat Min Sub Total 3263 | 52 784 846 1581 Wait 246 | 6 14 15 211 Move 2815 | 34 716 786 1279 Hop . | . . . . Pick Up 20 | 6 4 6 4 Fast Attach 5 | . . . 5 Attach 16 | 6 3 2 5 Detach 1 | . . . 1 Swap 10 | . 1 4 5 Drop 16 | . 1 1 14 Fire 113 | . 45 31 37 Melee 20 | . . . 20 Ram . | . . . . Kick 1 | . . 1 . Crush . | . . . . Escape Stasis . | . . . . Rewire . | . . . . Trap . | . . . . Miscellaneous . | . . . . Route ------- -11/Scrapyard -10/Materials (discovered 5 exits: *Mat x3 / *Min x2) -10/Mines (discovered 3 exits: *Mat x2 / *Sub) -10/Subcaves (discovered 2 exits: *Mat x2) History --------- Turn | Location | Event 27 | -11/Scrapyard | Identified exit to Materials 27 | -11/Scrapyard | Discovered exit to Materials (range 15) 57 | -11/Scrapyard | Entered Materials 57 | -10/Materials | Evolved 1 slot: Utility x1 143 | -10/Materials | Identified exit to Materials 143 | -10/Materials | Discovered exit to Materials (range 16) 325 | -10/Materials | Build established: Hacker-Mutant 429 | -10/Materials | Identified exit to Mines 429 | -10/Materials | Discovered exit to Mines (range 14) 606 | -10/Materials | Discovered exit to Materials (range 11) 888 | -10/Materials | Discovered exit to Materials (range 10) 1073 | -10/Materials | Entered Mines 1157 | -10/Mines | Assembled infested the area 1673 | -10/Mines | Discovered exit to Materials (range 17) 1767 | -10/Mines | Discovered exit to Materials (range 17) 1810 | -10/Mines | Found the Drone Emporium 1815 | -10/Mines | Found Prototype Device 1827 | -10/Mines | Identified Thief Drone Bay 1864 | -10/Mines | Identified exit to Subcaves 1864 | -10/Mines | Discovered exit to Subcaves (range 58) 1876 | -10/Mines | Received a Mining Laser from a helpful Derelict 2145 | -10/Mines | Entered Subcaves 2312 | -10/Subcaves | Ambushed by Subdweller buried in earth 2475 | -10/Subcaves | Learned location of Storage (-9) 2507 | -10/Subcaves | Shifting Twisted Machinery released Mak. Light Armor Plating 2515 | -10/Subcaves | Shifting Twisted Machinery released Sub. Optics 2561 | -10/Subcaves | Identified exit to Materials 2561 | -10/Subcaves | Discovered exit to Materials (range 10) 2609 | -10/Subcaves | Learned 2 Materials zone layouts 3291 | -10/Subcaves | Shifting Twisted Machinery released Flamer 3292 | -10/Subcaves | Shifting Twisted Machinery released Ripper 3314 | -10/Subcaves | Discovered exit to Materials (range 6) 3350 | -10/Subcaves | Learned location of Zion (-6) 3390 | -10/Subcaves | Shifting Twisted Machinery released Hvy. Battle Rifle 3399 | -10/Subcaves | Shifting Twisted Machinery released Spk. Treads 3529 | -10/Subcaves | Core integrity fell below 50% 3908 | -10/Subcaves | Core integrity fell below 20% 4025 | -10/Subcaves | Visited Clippyterm 4291 | -10/Subcaves | Destroyed by JU-K5J(R) with Subdweller Machine Gun Last Messages --------------- It looks like you're searching for a worm, right? Don't bother with early when it comes to the Lifeworm, it's never early, but by some measures it might be just in time... 04030_ Connecting with Clippyterm... 04106_ Thief Drone released from Thief Drone Bay. 04111_ ZF-CTZ(R) Sub. Optics ripped off. 04117_ Thief Drone delivers Sub. Optics. 04117_ Thief Drone retrieved by Thief Drone Bay. 04117_ ZF-CTZ(R) Disposable Heat Sink ripped off. 04122_ Thief Drone delivers Disposable Heat Sink. 04122_ Thief Drone retrieved by Thief Drone Bay. 04125_ Thief Drone released from Thief Drone Bay. 04132_ ZF-CTZ(R) destroyed. 04161_ Thief Drone sneak attacks. 04179_ Thief Drone retrieved by Thief Drone Bay. 04183_ Acquired 10 matter. 04223_ Ripper follow-up attack on YY-N5X(R). 04225_ YY-N5X(R) destroyed. 04283_ ZO-P11(R) affixes Scrap Shield Fragment to Scrap Shield. 04288_ JU-K5J(R) affixes Scrap Shield Fragment to Scrap Shield. Map ----- +----------------------------------------------------+ | | | | | | | | | | | | | | | | | | | ?????????????????????????????????????????????????? | | ?????????????????????????????????????????????????? | | ?????????????????????????????????????????????????? | | ?????????????????????????????????????????????????? | | ?????????????????????????????????????????????????? | | ?????????????????????????????????????????????????? | | ????????????????????????????????#????????????????? | | ????????????????????????????????"##??????????????? | | ???????????????????????????????? "##?????????????? | | ???????????????????????????????? #?????????????? | | ????????????????????????????????# "##????????????? | | ???????????????????????????????## "##????????????? | | ??????????????????????????????### "##????????????? | | ??######????????????###########"" <##????????????? | | ##########??????????###########< ###????????????? | | #### ####??????????## R<# # ######????????? | | # ##???######?## R @ ##"$"######????????? | | ################< ## <##""# ##????????? | | ######### ##########" #### ##????????? | | ###### ### ### " ## ###???????? | | ###??## ## #######???? | | ###### ######???? | | ## ####### ##???? | | #### ## ### ##???? | | ##### ###??? | | ####### ##??? | | # ###### ### ## ##??? | | # ####### ######## ##??? | | ###?### ######## ### ##??? | | ####?## ## ####### #### ##??? | | ### ###### ## ### #######??? ##??? | | ### ##### ######????? ##??? | | ### ### ##?????????###??? | | ## #### ##### ## ????????????? | | ## #### ########### ???????????? | | # ##### ##?######### ##### ???????????? | | ###### #???????"### #####????????????? | | ######## #????????### ##???????????????? | | ####??#### #?????????# ##???????????????? | | # ####????#####???????????? #????????????????? | | ###???????###???????????? ????????????????? | +----------------------------------------------------+ Best States ------------- Heat Dissipation 25 Energy Generation 15 Energy Capacity 250 Matter Stores 300 Matter Capacity 300 Sight Range 21 Terrain Scan Density 10 Resistance: KI 35 Resistance: TH 35 Resistance: EX 35 Resistance: EM 35 Resistance: I 35 Resistance: S 35 Resistance: P 35 Evasion (%) 55 Targeting Accuracy 5 Offensive Hacking 20 Item Schematics ----------------- Imp. Hover Unit | -10/Materials | Hacked Sml. Storage Unit | -10/Materials | Hacked Robot Schematics ------------------ None Fabricated ------------ Nothing Alien Tech Used ----------------- None Achievements -------------- None Challenges ------------ None Game ------ Seed AlertExplosiveLeg Manual? 0 Play Time 00:38:41 Cumulative 32.7 hours Start 2024.03.22 @ 15:00:31 End 2024.03.22 @ 15:40:58 Sessions 1 Manual Loads 0 Difficulty Explorer Special Mode None Game No. 17 Rogue 2 Adventurer 3 Explorer 12 Win Type - Total 2 Types 2/0/0/0/0/0/0/0/0 Lore% 29 Gallery% 41 Achievement% 41 Wizard Run 0 Options --------- Layout 0 ASCII 0 Keyboard 0 Movement Mouse Keybinds 0 Fullscreen 1 Font 18/X11Bold Map View 76x50 Zoom Use 0% Tactical HUD 1 Map Filters NONE Filters NONE Steam 1 RUN: 5c8733c4-2f19-4c09-bc82-541f864386d9